bitfinex/quotes_ETHUSD_20250112
["timestamp","ask_amount","ask_price","bid_price","bid_amount"]
[1736690297692,2.1401,3270.9,3270.2,0.0075]
[1736690298127,0.03330753,3270.8,3270.2,0.0075]
[1736690298709,2.1401,3270.9,3270.1,0.04557684]
[1736690299035,2.17345753,3270.8,3270.1,0.015]
[1736690299325,0.12875748,3270.7,3270.1,0.015]
[1736690300290,0.12875748,3270.7,3270.1,0.04557683]
[1736690308920,0.16206501,3270.7,3270.1,0.015]
[1736690309717,2.30228501,3270.7,3270.1,0.015]
[1736690314373,2.9422,3270.6,3270.1,0.015]
[1736690314574,0.1278123,3270.5,3270.1,0.015]
[1736690316783,2.2681523,3270.5,3270.1,0.015]
[1736690328301,0.1278123,3270.5,3270.1,0.015]
[1736690328702,2.94218,3270.6,3270.1,0.015]
[1736690328889,0.12773294,3270.4,3270.1,0.015]
[1736690329199,0.12773294,3270.3,3270.1,0.015]
[1736690329369,2.94218,3270.6,3270.1,0.015]
[1736690329570,2.26809294,3270.5,3270.1,0.015]
[1736690335416,0.12773294,3270.5,3270.3,0.0075]
[1736690335781,0.1277257,3270.4,3270.3,0.0075]
[1736690336041,2.14008,3270.9,3270.3,0.0075]
[1736690336179,0.1277257,3270.4,3270.3,0.0075]
[1736690336517,2.14024,3270.7,3270.3,0.0075]
[1736690336714,2.354264,3270.7,3270.3,0.0075]
[1736690336923,0.1277257,3270.6,3270.3,0.0075]
[1736690337230,2.14024,3270.7,3270.3,0.0075]
[1736690337984,0.1277257,3270.6,3270.3,0.0075]
[1736690338228,2.14024,3270.7,3270.3,0.0075]
[1736690338922,0.1277257,3270.6,3270.3,0.0075]
[1736690339280,2.14024,3270.7,3270.3,0.0075]
[1736690339705,0.1277257,3270.6,3270.3,0.0075]
[1736690339910,0.16103323,3270.6,3270.3,0.0075]
[1736690340220,0.03330753,3270.6,3270.3,0.0075]
[1736690342530,0.12783397,3270.5,3270.3,0.0075]
[1736690345812,2.14022,3270.7,3270.3,0.0075]
[1736690346016,0.12783397,3270.4,3270.3,0.0075]
[1736690346335,2.17352753,3270.7,3270.3,0.0075]
[1736690346535,0.12783397,3270.4,3270.3,0.0075]
[1736690346734,2.17352753,3270.7,3270.3,0.0075]
[1736690346909,0.12783397,3270.4,3270.3,0.0075]
[1736690347098,2.17352753,3270.7,3270.3,0.0075]
[1736690347297,2.91844,3271.0,3270.3,0.0075]
[1736690347298,0.12783397,3270.4,3270.3,0.0075]
[1736690347535,0.0075,3272.0,3270.3,0.0075]
[1736690347536,2.13996,3271.1,3270.5,0.0075]
[1736690347894,0.16112707,3271.0,3270.5,0.0075]
[1736690348101,0.03330753,3271.0,3270.5,0.0075]
[1736690348297,0.12781954,3270.9,3270.5,0.0075]
[1736690349546,2.26793954,3270.9,3270.4,0.8125]
[1736690349717,0.03330753,3270.8,3270.4,0.8125]
[1736690350068,0.7962,3270.7,3270.2,0.0075]
[1736690350379,0.03330753,3270.6,3270.2,0.0075]
[1736690351563,0.03330753,3270.6,3270.2,5.3775]
[1736690352354,0.12799994,3270.5,3270.2,5.3775]
[1736690352560,0.03330753,3270.6,3270.2,5.3775]
[1736690352732,2.93642,3270.7,3270.2,5.3775]
[1736690354473,0.7962,3270.7,3270.2,5.3775]
[1736690357387,0.78809757,3270.7,3270.2,5.3775]
[1736690357732,0.78809757,3270.7,3270.2,6.29485]
[1736690361093,0.12797827,3270.6,3270.2,6.29485]
[1736690361342,0.12797827,3270.6,3270.2,5.3775]
[1736690361517,0.78809757,3270.7,3270.2,5.3775]
[1736690364976,0.78809757,3270.7,3270.2,6.1735]
[1736690367010,0.78809757,3270.7,3270.2,5.3775]
[1736690367210,0.78809757,3270.7,3270.2,6.1735]
[1736690367510,0.78809757,3270.7,3270.2,6.79390762]
[1736690371352,0.78809757,3270.7,3270.2,6.1735]
[1736690374251,0.8214051,3270.7,3270.2,6.1735]
[1736690374709,2.9616251,3270.7,3270.2,5.3775]
[1736690375891,0.8214051,3270.7,3270.2,5.3775]
[1736690376083,2.14028,3270.6,3270.2,5.3775]
[1736690377437,0.78809757,3270.7,3270.2,5.3775]
[1736690377951,0.03330753,3270.6,3270.2,5.3775]
[1736690379155,0.12794221,3270.5,3270.2,5.3775]
[1736690381481,0.03330753,3270.6,3270.2,5.3775]
[1736690388549,2.17361753,3270.6,3270.2,5.3775]
[1736690388962,0.12792054,3270.5,3270.2,5.3775]
[1736690390361,0.03330753,3270.6,3270.2,5.3775]
[1736690390914,0.12792054,3270.5,3270.2,5.3775]
[1736690395682,2.9616251,3270.7,3270.2,5.3775]
[1736690395882,0.12792054,3270.4,3270.2,5.3775]
[1736690396215,2.9616251,3270.7,3270.2,5.3775]
[1736690396617,0.12792054,3270.3,3270.2,5.3775]
[1736690396769,2.92831757,3270.7,3270.2,5.3775]
[1736690397300,0.12792054,3270.6,3270.2,5.3775]
[1736690401331,0.12792054,3270.6,3270.5,0.7875]
[1736690401471,0.12792054,3270.6,3270.5,0.8025]
[1736690401828,0.12792054,3270.6,3270.5,5.97341238]
[1736690402152,0.12792054,3270.6,3270.5,10.13113]
[1736690402424,0.12792054,3270.6,3270.5,9.89623]
[1736690402574,0.12792054,3270.6,3270.5,7.25729091]
[1736690402774,0.12792054,3270.6,3270.5,0.0075]
[1736690403576,0.12792054,3270.6,3270.5,0.7875]
[1736690403777,0.12792054,3270.6,3270.5,0.83307192]
[1736690404311,0.12792054,3270.6,3270.5,5.97341192]
[1736690404574,0.12792054,3270.6,3270.5,12.58982758]
[1736690404787,0.12792054,3270.6,3270.5,10.39155034]
[1736690405434,0.12792054,3270.6,3270.5,7.20182276]
[1736690405596,0.12792054,3270.6,3270.5,21.37182276]
[1736690406390,0.12792054,3270.6,3270.5,26.37182276]
[1736690406608,0.12792054,3270.6,3270.5,25.92352276]
[1736690408601,0.12792054,3270.6,3270.5,25.25151276]
[1736690413946,0.12792054,3270.6,3270.5,28.44124034]
[1736690414322,0.12792054,3270.6,3270.5,28.99874034]
[1736690414732,0.12792054,3270.6,3270.5,25.80901276]
[1736690415041,0.12792054,3270.6,3270.5,29.61694767]
[1736690416622,0.12792054,3270.6,3270.5,25.80901276]
[1736690417517,2.92263,3272.2,3271.4,0.0075]
[1736690417852,0.41745301,3272.1,3271.5,0.0075]
[1736690418224,2.95608753,3272.0,3271.5,0.0075]
[1736690418649,0.12519001,3271.9,3271.5,0.0075]
[1736690420558,0.12519001,3271.9,3271.6,0.0075]
[1736690420848,0.7834,3271.8,3271.6,0.0075]
[1736690421059,0.7834,3271.8,3271.5,5.37]
[1736690421351,1.12484128,3271.8,3271.5,5.37]
[1736690421589,0.12519001,3271.7,3271.5,5.37]
[1736690421948,2.95621753,3271.8,3271.5,5.37]
[1736690422125,0.12519001,3271.6,3271.5,5.37]
[1736690422455,0.12519001,3271.6,3271.5,5.3775]
[1736690422654,2.95621753,3271.8,3271.5,5.37]
[1736690422954,0.29562175,3271.7,3271.5,5.37]
[1736690423310,0.12519001,3271.6,3271.5,5.37]
[1736690423511,0.90859001,3271.6,3271.5,5.37]
[1736690424252,0.12519001,3271.6,3271.5,5.37]
[1736690424453,0.7834,3271.8,3271.5,5.37]
[1736690424657,1.075686,3271.8,3271.5,5.37]
[1736690424958,0.12511776,3271.7,3271.5,5.37]
[1736690425375,1.075686,3271.8,3271.5,5.37]
[1736690425573,0.12511776,3271.6,3271.5,5.37]
[1736690425741,1.075686,3271.8,3271.5,5.37]
[1736690425942,0.12511776,3271.6,3271.5,5.37]
[1736690426143,1.075686,3271.8,3271.5,5.37]
[1736690426346,0.12511776,3271.6,3271.5,5.37]
[1736690426577,0.03330753,3271.7,3271.3,5.37]
[1736690426884,0.12511776,3271.6,3271.3,5.37]
[1736690430287,0.12516833,3271.5,3271.3,5.98848]
[1736690430650,0.7834,3271.8,3271.3,5.98848]
[1736690430849,0.12516833,3271.7,3271.3,5.37]
[1736690431084,0.7834,3271.8,3271.3,5.37]
[1736690431288,0.12516833,3271.6,3271.3,5.37]
[1736690431462,0.7834,3271.8,3271.3,5.37]
[1736690431962,0.12516833,3271.7,3271.3,5.37]
[1736690432288,0.7834,3271.8,3271.3,5.37]
[1736690432460,0.12516833,3271.6,3271.3,5.37]
[1736690432790,0.7834,3271.8,3271.3,5.37]
[1736690432994,0.81670753,3271.8,3271.3,5.37]
[1736690433295,0.12516833,3271.7,3271.3,5.37]
[1736690433648,0.7834,3271.8,3271.3,5.37]
[1736690433989,0.12516833,3271.7,3271.3,5.37]
[1736690434362,0.7834,3271.8,3271.3,5.37]
[1736690434565,0.12516833,3271.6,3271.3,5.37]
[1736690434780,0.7834,3271.8,3271.3,5.37]
[1736690435242,0.12516833,3271.7,3271.3,5.37]
[1736690435443,0.7834,3271.8,3271.3,5.37]
[1736690435690,0.12516833,3271.7,3271.3,5.37]
[1736690435846,0.7834,3271.8,3271.3,5.37]
[1736690436046,0.12516833,3271.7,3271.3,5.37]
[1736690436247,0.7834,3271.8,3271.3,5.37]
[1736690436551,0.12516833,3271.7,3271.6,11.29252]
[1736690436768,0.12516833,3271.7,3271.6,16.29252]
[1736690436963,2.93335,3272.8,3271.9,0.0225]
[1736690437290,0.03330753,3272.7,3271.9,0.0225]
[1736690437482,2.13897,3272.6,3271.9,0.0225]
[1736690437790,0.03330753,3272.5,3271.9,0.0225]
[1736690437993,0.15435695,3272.5,3271.9,0.87065778]
[1736690439454,0.7945,3272.4,3271.9,0.0075]
[1736690439790,2.17248753,3272.3,3271.7,5.37]
[1736690440096,0.12104942,3272.2,3271.8,0.0075]
[1736690440293,2.26028942,3272.2,3271.8,0.0075]
[1736690440481,0.82780753,3272.1,3271.7,5.37]
[1736690440687,0.7945,3271.8,3271.7,5.37]
[1736690440854,0.7945,3271.8,3271.3,5.37]
[1736690441054,0.12146187,3271.7,3271.4,0.0075]
[1736690441254,0.7945,3271.8,3271.4,0.0075]
[1736690441492,0.12146187,3271.7,3271.4,0.0075]
[1736690441885,0.7945,3271.8,3271.4,0.0075]
[1736690442067,0.12146187,3271.6,3271.4,0.0075]
[1736690442266,0.7945,3271.8,3271.4,0.0075]
[1736690442487,2.93399,3271.8,3271.3,5.37]
[1736690442864,0.12146187,3271.7,3271.3,5.37]
[1736690443087,2.93399,3271.8,3271.3,5.37]
[1736690443298,0.12146187,3271.6,3271.3,5.37]
[1736690443472,2.93399,3271.8,3271.3,5.37]
[1736690443672,0.12146187,3271.7,3271.3,5.37]
[1736690443881,3.227389,3271.8,3271.3,5.37]
[1736690444123,0.12146187,3271.6,3271.3,5.37]
[1736690444273,3.227389,3271.8,3271.3,5.37]
[1736690444604,0.12146187,3271.7,3271.3,5.37]
[1736690444958,2.93399,3271.8,3271.3,5.37]
[1736690445189,0.12146187,3271.6,3271.3,5.37]
[1736690445404,2.93387,3272.0,3271.3,5.37]
[1736690445607,0.11741314,3271.5,3271.3,5.37]
[1736690445755,2.93387,3272.0,3271.3,5.37]
[1736690445960,0.11741314,3271.4,3271.3,5.3775]
[1736690446255,2.93387,3272.0,3271.3,5.3775]
[1736690446459,0.41080014,3271.9,3271.3,5.3775]
[1736690446761,0.11741314,3271.9,3271.3,5.3775]
[1736690448912,0.11741314,3271.9,3271.6,0.0075]
[1736690449271,2.13923,3272.2,3271.6,0.0075]
[1736690450217,2.13911,3272.4,3271.6,0.05306316]
[1736690450418,2.13911,3272.4,3271.8,0.0075]
[1736690451296,2.17247753,3272.3,3271.8,0.0075]
[1736690451771,0.7623,3272.0,3271.5,0.7565]
[1736690451972,2.13944,3271.9,3271.3,135.37628561]
[1736690452176,2.13944,3271.9,3271.3,132.8343]
[1736690455284,0.7623,3272.0,3271.4,0.015]
[1736690455488,0.7623,3272.2,3271.6,0.0075]
[1736690455815,0.03330753,3272.1,3271.6,0.0075]
[1736690456202,2.17262753,3272.1,3271.6,0.0075]
[1736690458339,2.17262753,3272.1,3271.4,0.0225]
[1736690458543,0.03330753,3272.1,3271.4,0.0225]
[1736690458842,2.90181,3271.8,3271.3,132.8343]
[1736690459190,2.90181,3271.8,3271.3,135.9690471]
[1736690461213,2.13951,3271.8,3271.3,135.9690471]
[1736690461631,0.7623,3272.0,3271.3,135.9690471]
[1736690461807,2.90167,3272.0,3271.3,135.9690471]
[1736690462103,2.13937,3272.0,3271.3,135.9690471]
[1736690462309,0.7623,3272.2,3271.3,135.9690471]
[1736690462310,2.13943,3271.9,3271.3,135.9690471]
[1736690464309,2.13943,3271.9,3271.4,3.1347471]
[1736690464547,0.7623,3272.2,3271.5,0.0075]
[1736690464848,2.13937,3272.0,3271.5,0.0075]
[1736690466761,2.13937,3272.0,3271.4,0.0075]
[1736690468660,0.7623,3272.2,3271.4,0.0075]
[1736690468845,0.7502,3272.0,3271.3,132.0778]
[1736690469048,2.13947,3271.9,3271.3,132.0778]
[1736690470068,2.13955,3271.8,3271.3,132.0778]
[1736690470400,2.13959,3271.7,3271.3,132.0778]
[1736690473372,2.13946,3271.9,3271.3,132.0778]
[1736690473723,1.37055961,3272.0,3271.3,132.0778]
[1736690473928,2.13952,3271.8,3271.3,132.0778]
[1736690476770,1.253349,3272.1,3271.3,132.8664]
[1736690476971,2.13939,3272.0,3271.3,132.8664]
[1736690477184,2.13939,3272.0,3271.4,0.0075]
[1736690477383,0.03330753,3271.9,3271.4,0.0075]
[1736690477894,2.17273753,3271.9,3271.4,0.0075]
[1736690479093,2.13955,3271.8,3271.3,132.8664]
[1736690479290,0.8124,3271.6,3271.3,132.0778]
[1736690479585,0.03330753,3271.5,3271.3,132.0778]
[1736690479982,2.17299753,3271.5,3271.3,132.0778]
[1736690481813,0.03330753,3271.5,3271.3,132.0778]
[1736690482016,0.84570753,3271.6,3271.3,132.0778]
[1736690482208,0.8124,3271.6,3271.3,132.0778]
[1736690483234,0.213,3272.1,3271.3,135.2125471]
[1736690483533,0.8124,3272.0,3271.4,0.7859]
[1736690483694,2.35233,3272.1,3271.4,0.7859]
[1736690484631,0.8124,3272.0,3271.3,132.0778]
[1736690484791,0.84570753,3272.0,3271.3,132.0778]
[1736690485135,1.2221093,3272.0,3271.3,132.0778]
[1736690485335,2.13966,3271.6,3271.3,132.0778]
[1736690485540,0.84570753,3271.5,3271.3,132.0778]
[1736690485697,2.13975,3271.4,3271.3,132.0778]
[1736690485901,2.95215,3271.4,3271.3,132.0778]
[1736690486130,3.25069575,3271.4,3271.3,132.0778]
[1736690489805,2.14003,3271.0,3270.3,0.7859]
[1736690490305,2.14013,3270.9,3270.3,0.7859]
[1736690494864,0.03330753,3270.8,3270.3,0.7859]
[1736690495038,2.14013,3270.9,3270.3,0.7859]
[1736690495570,0.03330753,3270.8,3270.3,0.7859]
[1736690495770,2.14013,3270.9,3270.3,1.70149]
[1736690497368,0.03330753,3270.8,3270.3,1.70149]
[1736690497582,2.14013,3270.9,3270.3,1.70149]
[1736690501186,0.03330753,3270.8,3270.3,1.70149]
[1736690501494,2.14013,3270.9,3270.3,1.70149]
[1736690501655,0.03330753,3270.8,3270.3,0.7859]
[1736690501858,2.28231232,3270.8,3270.3,0.7859]
[1736690502123,2.17345753,3270.8,3270.3,0.7859]
[1736690502259,0.10885479,3270.7,3270.3,0.7859]
[1736690502809,2.17345753,3270.8,3270.3,0.7859]
[1736690503198,0.10885479,3270.7,3270.3,0.7859]
[1736690503636,2.17345753,3270.8,3270.3,0.7859]
[1736690503904,0.10885479,3270.6,3270.3,0.7859]
[1736690504064,2.17345753,3270.8,3270.3,0.7859]
[1736690504607,0.10885479,3270.7,3270.3,0.7859]
[1736690506580,0.10885479,3270.7,3270.2,0.0075]
[1736690506762,2.17345753,3270.8,3270.2,0.0075]
[1736690507476,2.17345753,3270.8,3270.2,5.3775]
[1736690507678,2.94822,3270.7,3270.2,5.3775]
[1736690510218,2.94614471,3270.7,3270.2,5.9932]
[1736690518239,0.10884756,3270.6,3270.2,5.9932]
[1736690518905,2.24912756,3270.6,3270.2,5.9932]
[1736690519106,2.14047,3270.3,3270.0,0.46997381]
[1736690519304,0.03330753,3270.2,3270.0,0.46997381]
[1736690520310,0.8143,3270.1,3270.0,0.46997381]
[1736690521296,2.14036,3270.5,3270.0,0.46997381]
[1736690521605,2.95453,3270.7,3270.2,0.7517]
[1736690521810,0.10787018,3270.4,3270.2,0.7517]
[1736690522111,0.8143,3270.7,3270.2,0.7517]
[1736690522311,0.10787018,3270.3,3270.2,9.1442]
[1736690522620,2.95427,3271.1,3270.5,0.0075]
[1736690524412,0.03330753,3271.0,3270.5,0.0075]
[1736690524993,0.03330753,3271.0,3270.4,0.7517]
[1736690525199,2.95451,3270.7,3270.2,5.37]
[1736690525495,2.14035,3270.5,3270.2,5.37]
[1736690525702,0.03330753,3270.4,3270.2,5.37]
[1736690525941,0.10814535,3270.4,3270.2,5.37]
[1736690527343,2.14041,3270.4,3270.2,5.37]
[1736690527807,0.10814535,3270.3,3270.2,5.37]
[1736690529049,2.28193288,3270.3,3270.0,0.46997381]
[1736690529208,2.17378753,3270.3,3270.0,0.46997381]
[1736690531050,2.14036,3270.5,3270.0,0.46997381]
[1736690531353,0.03330753,3270.4,3270.0,0.46997381]
[1736690531536,2.14039,3270.5,3270.0,0.46997381]
[1736690531742,0.03330753,3270.4,3270.0,0.46997381]
[1736690532818,2.14046,3270.4,3270.0,0.46997381]
[1736690533030,1.43896887,3270.7,3270.0,0.46997381]
[1736690533031,2.17378753,3270.3,3270.0,0.46997381]
[1736690533721,0.03330753,3270.3,3270.0,0.46997381]
[1736690533934,2.17373753,3270.4,3270.0,0.46997381]
[1736690534390,0.10758053,3270.3,3270.0,0.46997381]
[1736690536450,2.14047,3270.3,3270.0,0.46997381]
[1736690536637,0.10758053,3270.2,3270.0,0.46997381]
[1736690536843,2.14047,3270.3,3270.0,0.46997381]
[1736690537025,0.10758053,3270.1,3270.0,0.46997381]
[1736690537219,2.14047,3270.3,3270.0,0.46997381]
[1736690537428,0.10758053,3270.1,3270.0,0.46997381]
[1736690537750,2.14047,3270.3,3270.0,0.46997381]
[1736690538261,0.10758053,3270.2,3270.1,0.7828]
[1736690538438,0.8175,3270.9,3270.1,0.7828]
[1736690538955,0.10748637,3270.8,3270.1,0.7828]
[1736690539657,2.14022,3270.7,3270.1,0.7828]
[1736690540011,0.10748637,3270.6,3270.1,0.7828]
[1736690540613,2.14047,3270.3,3270.0,0.46997381]
[1736690541959,0.03330753,3270.4,3270.0,0.46997381]
[1736690542422,0.10765295,3270.3,3270.0,0.46997381]
[1736690542978,0.03330753,3270.4,3270.0,0.46997381]
[1736690543326,2.14023,3270.7,3270.1,0.7828]
[1736690543636,0.8175,3270.8,3270.1,0.7828]
[1736690543637,2.24775913,3270.6,3270.1,0.7828]
[1736690544562,0.10747913,3270.6,3270.1,0.7828]
[1736690544745,2.95765,3270.8,3270.1,0.7828]
[1736690545124,0.10747913,3270.7,3270.1,0.7828]
[1736690546465,2.24768913,3270.7,3270.1,0.7828]
[1736690546762,0.10747913,3270.6,3270.1,0.7828]
[1736690551081,2.28107666,3270.6,3270.1,0.7828]
[1736690551528,2.59093433,3270.6,3270.1,0.7828]
[1736690551927,2.4834552,3270.6,3270.1,0.7828]
[1736690552133,2.24782913,3270.5,3270.1,0.7828]
[1736690552866,2.24782913,3270.5,3270.0,0.46997381]
[1736690553322,2.14035,3270.5,3270.0,0.46997381]
[1736690553982,0.8327,3270.4,3270.0,0.46997381]
[1736690554274,0.10750086,3270.3,3270.0,0.46997381]
[1736690554857,0.8327,3270.4,3270.0,0.46997381]
[1736690555438,2.14035,3270.5,3270.0,0.46997381]
[1736690556344,0.8327,3270.7,3270.1,0.7558]
[1736690556570,2.97293,3270.7,3270.1,0.7558]
[1736690557071,0.03330753,3270.6,3270.1,0.7558]
[1736690557279,2.17358753,3270.6,3270.1,0.7558]
[1736690557432,0.10737773,3270.5,3270.1,0.7558]
[1736690561763,0.14068526,3270.5,3270.1,0.7558]
[1736690564987,2.14047,3270.4,3270.1,0.7558]
[1736690565194,2.17378753,3270.3,3270.0,0.46997381]
[1736690565390,2.24787222,3270.3,3270.0,0.46997381]
[1736690570495,0.03330753,3270.2,3270.0,0.46997381]
[1736690570695,2.1406,3270.1,3270.0,0.46997381]
[1736690571009,2.45183273,3270.1,3270.0,0.46997381]
[1736690571166,2.55890621,3270.1,3270.0,0.46997381]
[1736690572660,3.39000621,3270.1,3270.0,0.46997381]
[1736690585881,0.10707348,3270.1,3270.0,1.29227381]
[1736690586124,0.0075,3271.0,3270.1,0.8223]
[1736690586125,0.213,3271.0,3270.1,0.8223]
[1736690586324,2.14017,3270.8,3270.3,0.8223]
[1736690586844,0.213,3271.2,3270.3,0.8223]
[1736690587000,2.14021,3270.7,3270.3,0.8223]
[1736690587633,2.14041,3270.4,3270.3,0.8223]
[1736690587841,0.21737175,3270.4,3270.1,0.8223]
[1736690588170,2.1406,3270.1,3270.0,0.46997381]
[1736690588728,2.9605,3270.1,3270.0,0.46997381]
[1736690591634,3.57712,3270.1,3270.0,0.46997381]
[1736690591837,3.61042753,3270.1,3270.0,0.46997381]
[1736690592779,3.57712,3270.1,3270.0,0.46997381]
[1736690592935,3.93816275,3270.1,3270.0,0.46997381]
[1736690600175,4.04421462,3270.1,3270.0,0.46997381]
[1736690605588,3.68317187,3270.1,3270.0,0.46997381]
[1736690608694,3.89617187,3270.1,3270.0,0.46997381]
[1736690615320,3.07627187,3270.1,3270.0,0.46997381]
[1736690641414,2.86327187,3270.1,3270.0,0.46997381]
[1736690641614,0.10605187,3270.1,3270.0,1.27407381]
[1736690641845,0.10605187,3270.1,3270.0,2.04082495]
[1736690642045,2.14026,3270.7,3270.1,0.8041]
[1736690642343,0.10239625,3270.6,3270.2,0.8041]
[1736690645758,0.13570378,3270.6,3270.2,0.8041]
[1736690645962,2.14042,3270.4,3270.2,0.8041]
[1736690646164,2.14042,3270.4,3270.2,1.0081825]
[1736690646533,0.10351376,3270.3,3270.2,1.0081825]
[1736690648579,0.213,3270.8,3270.2,1.0081825]
[1736690648742,2.14035,3270.5,3270.2,0.8041]
[1736690648942,2.14042,3270.4,3270.2,0.8041]
[1736690649178,2.24386847,3270.4,3270.2,0.8041]
[1736690650994,0.10344847,3270.4,3270.2,0.8041]
[1736690652019,0.10344847,3270.3,3270.2,0.8041]
[1736690652466,2.1401,3270.9,3270.3,0.7597]
[1736690653958,0.03330753,3270.8,3270.3,0.7597]
[1736690654254,2.14022,3270.7,3270.3,0.7597]
[1736690656383,2.95441466,3271.1,3270.3,0.7597]
[1736690656569,2.14011,3270.9,3270.3,0.7597]
[1736690657121,2.14011,3270.9,3270.3,5.37]
[1736690657260,2.14011,3270.9,3270.4,0.59505753]
[1736690657460,2.14011,3270.9,3270.5,0.7597]
[1736690659402,2.13987,3271.3,3270.7,0.7597]
[1736690659697,0.213,3271.5,3270.7,0.7597]
[1736690659871,5.13952,3271.8,3270.7,0.7597]
[1736690660198,2.13988,3271.3,3270.7,0.7597]
[1736690660519,2.13967,3271.6,3270.8,0.55]
[1736690660805,5.31,3272.1,3271.1,1.3097]
[1736690660806,0.10384021,3271.2,3271.1,1.3097]
[1736690661101,2.13957,3271.7,3271.1,1.3097]
[1736690661466,0.10397076,3271.2,3271.1,1.3097]
[1736690661693,2.13957,3271.7,3271.1,1.3097]
[1736690661893,2.13957,3271.7,3271.2,0.7597]
[1736690662070,0.10397076,3271.6,3271.5,1.3172]
[1736690662287,0.10397076,3271.6,3271.5,2.09028923]
[1736690662510,2.13899,3272.6,3271.9,5.92]
[1736690662808,0.213,3272.8,3272.2,0.55]
[1736690662972,2.13879,3272.9,3272.3,0.7597]
[1736690663180,0.03330753,3272.8,3272.3,0.7597]
[1736690663374,2.139,3272.6,3272.3,0.7597]
[1736690663587,2.46504753,3272.6,3272.3,0.7597]
[1736690664377,2.139,3272.6,3272.3,0.7597]
[1736690665012,2.13906,3272.5,3272.3,0.7597]
[1736690665672,0.03330753,3272.8,3272.0,0.7597]
[1736690665867,0.7884,3272.6,3272.0,0.7597]
[1736690666078,1.0014,3272.6,3271.8,0.7597]
[1736690666321,2.13935,3272.1,3271.8,0.7597]
[1736690666497,2.17270753,3272.0,3271.8,0.7597]
[1736690666700,2.13925,3272.2,3271.8,0.7597]
[1736690667034,2.13937,3272.0,3271.8,0.7597]
[1736690669401,1.0014,3272.6,3271.8,0.7597]
[1736690669596,2.13937,3272.0,3271.8,0.7597]
[1736690673377,0.03330753,3271.9,3271.5,0.7706]
[1736690673614,2.13937,3272.0,3271.5,0.7706]
[1736690673819,0.03330753,3271.9,3271.5,0.7706]
[1736690674190,2.13929,3272.1,3271.7,0.7706]
[1736690674385,2.13863,3273.2,3272.1,0.0225]
[1736690674617,2.13875,3273.0,3272.2,1.3206]
[1736690674917,2.13875,3273.0,3272.3,0.03055646]
[1736690675275,0.09857969,3272.9,3272.3,0.03055646]
[1736690676285,0.7949,3272.8,3272.0,5.37]
[1736690676525,0.03330753,3272.7,3272.0,5.37]
[1736690676720,2.13897,3272.6,3272.0,5.37]
[1736690677015,2.13904,3272.5,3272.0,5.37]
[1736690677181,2.23761969,3272.5,3272.0,5.37]
[1736690677377,2.13911,3272.4,3272.0,5.37]
[1736690677779,0.09857969,3272.3,3272.0,5.37]
[1736690679715,2.13905,3272.5,3272.0,5.37]
[1736690679926,0.09857969,3272.2,3272.0,5.37]
[1736690680092,0.09857969,3272.2,3272.0,5.98406]
[1736690680426,0.09857969,3272.1,3272.0,5.98406]
[1736690681022,2.1391,3272.4,3272.0,5.98406]
[1736690681225,2.13903,3272.6,3272.0,0.61406]
[1736690681394,0.09857969,3272.3,3271.9,0.7706]
[1736690681593,2.13903,3272.5,3271.9,0.7706]
[1736690681794,0.09857969,3272.2,3271.9,0.7706]
[1736690681995,2.13903,3272.5,3271.9,0.7706]
[1736690682240,0.09857969,3272.1,3271.9,0.7706]
[1736690682421,2.13903,3272.5,3271.9,0.7706]
[1736690682731,0.09857969,3272.4,3271.9,0.7706]
[1736690684794,2.23768969,3272.4,3271.9,0.7706]
[1736690687235,0.09857969,3272.4,3272.0,1.3312609]
[1736690687529,0.09857969,3272.4,3272.1,0.7507]
[1736690687717,2.13885,3272.8,3272.1,0.7507]
[1736690687921,0.0955913,3272.3,3272.1,0.7507]
[1736690688133,2.13885,3272.8,3272.1,0.7507]
[1736690688337,0.0955913,3272.2,3272.1,0.78125747]
[1736690688559,0.0955913,3272.2,3272.1,1.33125747]
[1736690688761,2.13885,3272.8,3272.1,1.33125747]
[1736690688924,2.13885,3272.8,3272.2,0.7521]
[1736690689425,2.13871,3273.0,3272.2,0.7521]
[1736690689864,2.13892,3272.7,3272.2,0.7521]
[1736690690264,0.0955913,3272.6,3272.2,0.7521]
[1736690693669,2.2346213,3272.6,3272.2,0.7521]
[1736690693871,0.03330753,3272.5,3271.9,5.37]
[1736690694174,2.13916,3272.3,3271.9,6.1221]
[1736690695033,0.0955913,3272.2,3271.9,6.1221]
[1736690695534,0.0955913,3272.1,3271.9,6.1221]
[1736690700561,2.13912,3272.4,3271.9,6.73431]
[1736690700763,0.09594692,3272.3,3271.9,6.73431]
[1736690701978,0.12925445,3272.3,3271.9,5.37]
[1736690702290,0.8324,3272.2,3271.9,5.37]
[1736690702477,2.13936,3272.0,3271.6,0.8289]
[1736690703052,0.09598321,3271.9,3271.6,0.8289]
[1736690703864,2.13926,3272.2,3271.6,0.8289]
[1736690704063,2.13926,3272.2,3271.6,1.44954]
[1736690704250,0.09589612,3272.1,3271.6,1.44954]
[1736690704698,0.09589612,3272.1,3271.6,1.48010378]
[1736690704905,2.13916,3272.3,3271.6,1.48010378]
[1736690705045,0.09589612,3272.0,3271.6,1.48010378]
[1736690705249,2.13925,3272.2,3271.6,1.48010378]
[1736690705449,0.09589612,3271.9,3271.6,1.48010378]
[1736690705749,0.09589612,3271.8,3271.7,0.68501038]
[1736690705945,2.13925,3272.2,3271.7,0.68501038]
[1736690706147,0.09589612,3272.1,3271.6,0.85946378]
[1736690707348,0.09589612,3272.1,3271.6,0.8289]
[1736690708192,0.09589612,3272.1,3271.6,0.85946229]
[1736690708693,0.09589612,3272.1,3271.6,0.8289]
[1736690709593,0.09589612,3272.1,3271.5,5.37]
[1736690709800,0.8059,3272.0,3271.5,5.37]
[1736690710211,0.09587435,3271.9,3271.5,5.37]
[1736690710513,2.23530435,3271.9,3271.5,5.37]
[1736690711070,0.09587435,3271.9,3271.5,5.37]
[1736690711470,2.23532435,3271.9,3271.5,5.37]